[Event "Aarhus Festuge GM 2018"]
[Site "Aarhus"]
[Date "2018.09.08"]
[Round "1"]
[White "Gritsak, Orest"]
[Black "Kotronias, Vasilios"]
[Result "1/2-1/2"]
[ECO "A49"]
[WhiteElo "2450"]
[BlackElo "2505"]
[Annotator "NA"]
[PlyCount "71"]
[EventDate "2018.09.08"]
[EventType "tourn"]
[EventCountry "DEN"]
[SourceTitle "playchess.com"]
[Source "ChessBase"]
[SourceQuality "1"]
[TimeControl "40/5400+30:1800+30"]

1. d4 {[%emt 0:00:00]} Nf6 {[%emt 0:00:00]} 2. Nf3 {[%emt 0:00:00]} g6 {[%emt 0:00:00]} 3. g3 {[%emt 0:00:25]} Bg7 {[%emt 0:00:00]} 4. Bg2 {[%emt 0:00:04]} O-O {[%emt 0:00:02]} 5. O-O {[%emt 0:00:05]} d6 {[%emt 0:00:10]} 6. a4 {[%emt 0:04:06]} c6 {[%emt 0:00:16]} 7. Nbd2 {[%emt 0:03:41]} Qc7 {[%emt 0:00:31]} 8. e4 {[%emt 0:02:26]} e5 {[%emt 0:00:53]} 9. dxe5 {[%emt 0:03:13]} dxe5 {[%emt 0:00:09]} 10. Qe2 {[%emt 0:07:29]} b6 {[%emt 0:12:02]} 11. Rd1 {[%emt 0:03:08]} Rd8 {[%emt 0:10:17]} 12. b3 {[%emt 0:02:51]} Ba6 {[%emt 0:11:04]} 13. Qe1 {[%emt 0:01:01]} Nbd7 {[%emt 0:00:48]} 14. Bb2 {[%emt 0:01:35]} Bf8 {[%emt 0:00:26]} 15. Bf1 {[%emt 0:01:50]} Bxf1 {[%emt 0:01:36]} 16. Kxf1 {[%emt 0:02:26]} b5 {[%emt 0:03:47]} 17. Qe2 {[%emt 0:08:36]} a6 {[%emt 0:00:40]} 18. Kg2 {[%emt 0:01:57]} Re8 {[%emt 0:00:38]} 19. Ne1 {[%emt 0:06:10]} Nc5 {[%emt 0:08:09]} 20. Nd3 {[%emt 0:00:08]} Nxd3 {[%emt 0:00:38]} 21. Qxd3 {[%emt 0:00:06]} Nd7 {[%emt 0:03:41]} 22. Nf3 {[%emt 0:09:43]} Nc5 {[%emt 0:02:19]} 23. Qe2 {[%emt 0:02:18]} Rab8 {[%emt 0:01:37]} 24. Ba3 {[%emt 0:05:02]} Ne6 {[%emt 0:09:32]} 25. Bxf8 {[%emt 0:00:48]} Rxf8 {[%emt 0:04:42]} 26. axb5 {[%emt 0:00:06]} axb5 {[%emt 0:00:03]} 27. b4 {[%emt 0:00:31]} Rfd8 {[%emt 0:08:38]} 28. c3 {[%emt 0:00:22]} Kg7 {[%emt 0:01:05]} 29. h4 {[%emt 0:00:55]} h5 {[%emt 0:00:39]} 30. Qe3 {[%emt 0:01:39]} Rxd1 {[%emt 0:02:44]} 31. Rxd1 {[%emt 0:00:03]} f6 {[%emt 0:06:40]} 32. Ne1 {[%emt 0:00:30]} Rd8 {[%emt 0:01:59]} 33. Rxd8 {[%emt 0:00:58]} Qxd8 {[%emt 0:00:19]} 34. Nd3 {[%emt 0:00:33]} Qd7 {[%emt 0:00:13]} 35. f3 {[%emt 0:01:26]} Qb7 {[%emt 0:02:58]} 36. Nc5 {[%emt 0:08:46]} 1/2-1/2

[Event "Aarhus Festuge GM 2018"]
[Site "Aarhus"]
[Date "2018.09.08"]
[Round "1"]
[White "Antonsen, Mikkel"]
[Black "Zumsande, Martin"]
[Result "0-1"]
[ECO "D30"]
[WhiteElo "2434"]
[BlackElo "2458"]
[Annotator "NA"]
[PlyCount "82"]
[EventDate "2018.09.08"]
[EventType "tourn"]
[EventCountry "DEN"]
[SourceTitle "playchess.com"]
[Source "ChessBase"]
[SourceQuality "1"]
[TimeControl "40/5400+30:1800+30"]

1. d4 {[%emt 0:00:00]} d5 {[%emt 0:00:00]} 2. Nf3 {[%emt 0:00:20]} Nf6 {[%emt 0:00:00]} 3. c4 {[%emt 0:00:08]} e6 {[%emt 0:00:04]} 4. Bg5 {[%emt 0:02:07]} Be7 {[%emt 0:00:29]} 5. e3 {[%emt 0:00:19]} h6 {[%emt 0:04:08]} 6. Bxf6 {[%emt 0:00:32]} Bxf6 {[%emt 0:00:05]} 7. Qc2 {[%emt 0:02:00]} c6 {[%emt 0:08:59]} 8. Nc3 {[%emt 0:03:35]} Nd7 {[%emt 0:03:33]} 9. cxd5 {[%emt 0:03:42]} cxd5 {[%emt 0:04:10]} 10. Bd3 {[%emt 0:03:39]} Nb6 {[%emt 0:10:20]} 11. O-O {[%emt 0:07:58]} Bd7 {[%emt 0:04:27]} 12. e4 {[%emt 0:10:35]} Rc8 {[%emt 0:04:10]} 13. e5 {[%emt 0:03:31]} Be7 {[%emt 0:00:23]} 14. Qe2 {[%emt 0:02:42]} Nc4 {[%emt 0:04:05]} 15. b3 {[%emt 0:19:05]} Na3 {[%emt 0:03:54]} 16. Nb1 {[%emt 0:09:59]} Qa5 {[%emt 0:05:22]} 17. Nxa3 {[%emt 0:00:21]} Bxa3 {[%emt 0:00:14]} 18. Ne1 {[%emt 0:02:27]} O-O {[%emt 0:05:43]} 19. f4 {[%emt 0:02:40]} Qb6 {[%emt 0:13:54]} 20. Nf3 {[%emt 0:02:48]} Rc3 {[%emt 0:00:42]} 21. g4 {[%emt 0:03:41]} Rfc8 {[%emt 0:05:59]} 22. f5 {[%emt 0:01:40]} Bc1 {[%emt 0:01:07]} 23. Kh1 {[%emt 0:01:58]} a6 {[%emt 0:04:09]} 24. f6 {[%emt 0:08:30]} Bb5 {[%emt 0:00:44]} 25. Bxb5 {[%emt 0:00:09]} Qxb5 {[%emt 0:01:08]} 26. Qg2 {[%emt 0:02:07]} g6 {[%emt 0:02:13]} 27. Rd1 {[%emt 0:00:36]} Rc2 {[%emt 0:04:22]} 28. Qf1 {[%emt 0:00:04]} Qxf1+ {[%emt 0:02:03]} 29. Rxf1 {[%emt 0:00:03]} b5 {[%emt 0:00:35]} 30. a4 {[%emt 0:03:19]} b4 {[%emt 0:00:51]} 31. Ne1 {[%emt 0:00:15]} R2c3 {[%emt 0:02:00]} 32. Rb1 {[%emt 0:00:04]} Be3 {[%emt 0:01:31]} 33. Nf3 {[%emt 0:00:04]} g5 {[%emt 0:00:43]} 34. h4 {[%emt 0:02:06]} gxh4 {[%emt 0:01:06]} 35. Kg2 {[%emt 0:01:24]} Bg5 {[%emt 0:00:35]} 36. Rb2 {[%emt 0:00:22]} a5 {[%emt 0:00:28]} 37. Rff2 {[%emt 0:00:32]} Kh7 {[%emt 0:01:15]} 38. Rf1 {[%emt 0:01:42]} Rd3 {[%emt 0:00:24]} 39. Rh1 {[%emt 0:00:37]} Rcc3 {[%emt 0:00:47]} 40. Nxh4 {[%emt 0:00:13]} Bxh4 {[%emt 0:02:10]} 41. Rxh4 {[%emt 0:30:04]} Rxd4 {[%emt 0:30:05]} 0-1

[Event "Aarhus Festuge GM 2018"]
[Site "Aarhus"]
[Date "2018.09.08"]
[Round "1"]
[White "Skytte, Rasmus"]
[Black "Olsen, Filip Boe"]
[Result "1-0"]
[ECO "B10"]
[WhiteElo "2372"]
[BlackElo "2354"]
[Annotator "NA"]
[PlyCount "81"]
[EventDate "2018.09.08"]
[EventType "tourn"]
[EventCountry "DEN"]
[SourceTitle "playchess.com"]
[Source "ChessBase"]
[SourceQuality "1"]
[TimeControl "40/5400+30:1800+30"]

1. e4 {[%emt 0:00:00]} c6 {[%emt 0:00:00]} 2. d3 {[%emt 0:00:52]} d5 {[%emt 0:00:00]} 3. Nd2 {[%emt 0:00:31]} Nf6 {[%emt 0:01:10]} 4. Ngf3 {[%emt 0:01:02]} Bg4 {[%emt 0:06:24]} 5. h3 {[%emt 0:04:30]} Bh5 {[%emt 0:05:40]} 6. e5 {[%emt 0:01:08]} Nfd7 {[%emt 0:01:38]} 7. e6 {[%emt 0:00:18]} fxe6 {[%emt 0:01:45]} 8. Be2 {[%emt 0:00:06]} e5 {[%emt 0:25:11]} 9. Nxe5 {[%emt 0:02:09]} Bxe2 {[%emt 0:02:17]} 10. Qxe2 {[%emt 0:01:37]} Nxe5 {[%emt 0:01:29]} 11. Qxe5 {[%emt 0:00:11]} Qd6 {[%emt 0:04:03]} 12. Qe2 {[%emt 0:05:36]} Nd7 {[%emt 0:01:47]} 13. Nf3 {[%emt 0:04:50]} g6 {[%emt 0:13:11]} 14. O-O {[%emt 0:05:22]} Bg7 {[%emt 0:06:09]} 15. Re1 {[%emt 0:02:52]} Bf6 {[%emt 0:03:09]} 16. Ng5 {[%emt 0:08:12]} e5 {[%emt 0:05:56]} 17. c4 {[%emt 0:02:41]} O-O {[%emt 0:01:45]} 18. cxd5 {[%emt 0:01:28]} cxd5 {[%emt 0:00:11]} 19. Be3 {[%emt 0:02:26]} Rae8 {[%emt 0:02:45]} 20. Rac1 {[%emt 0:02:11]} b6 {[%emt 0:02:40]} 21. Nf3 {[%emt 0:06:57]} Bg7 {[%emt 0:01:39]} 22. Qc2 {[%emt 0:05:07]} d4 {[%emt 0:04:11]} 23. Bd2 {[%emt 0:02:54]} h6 {[%emt 0:03:34]} 24. Qc4+ {[%emt 0:06:40]} Qe6 {[%emt 0:02:23]} 25. Bb4 {[%emt 0:04:53]} Rf4 {[%emt 0:01:32]} 26. Qxe6+ {[%emt 0:02:55]} Rxe6 {[%emt 0:00:02]} 27. Rc7 {[%emt 0:03:11]} Nc5 {[%emt 0:01:13]} 28. Bxc5 {[%emt 0:02:35]} bxc5 {[%emt 0:00:02]} 29. Nd2 {[%emt 0:01:35]} Ra6 {[%emt 0:00:57]} 30. a3 {[%emt 0:02:55]} Rb6 {[%emt 0:00:29]} 31. b3 {[%emt 0:01:28]} e4 {[%emt 0:01:24]} 32. Nxe4 {[%emt 0:04:19]} Rxb3 {[%emt 0:00:34]} 33. Nxc5 {[%emt 0:00:08]} Rc3 {[%emt 0:00:28]} 34. Rxg7+ {[%emt 0:00:39]} Kxg7 {[%emt 0:00:05]} 35. Ne6+ {[%emt 0:00:05]} Kf7 {[%emt 0:00:15]} 36. Nxf4 {[%emt 0:00:10]} Rxa3 {[%emt 0:00:04]} 37. Re4 {[%emt 0:00:51]} g5 {[%emt 0:00:06]} 38. Ne2 {[%emt 0:00:12]} Rxd3 {[%emt 0:00:09]} 39. Nxd4 {[%emt 0:00:15]} a5 {[%emt 0:00:25]} 40. Nf5 {[%emt 0:06:01]} Kg6 {[%emt 0:01:14]} 41. g4 {[%emt 0:35:24]} 1-0

[Event "Aarhus Festuge GM 2018"]
[Site "Aarhus"]
[Date "2018.09.08"]
[Round "1"]
[White "Pajeken, Jakob Leon"]
[Black "Grove, Peter"]
[Result "1-0"]
[ECO "A43"]
[WhiteElo "2337"]
[BlackElo "2206"]
[Annotator "NA"]
[PlyCount "41"]
[EventDate "2018.09.08"]
[EventType "tourn"]
[EventCountry "DEN"]
[SourceTitle "playchess.com"]
[Source "ChessBase"]
[SourceQuality "1"]
[TimeControl "40/5400+30:1800+30"]

1. d4 {[%emt 0:00:00]} Nf6 {[%emt 0:00:08]} 2. Nf3 {[%emt 0:00:00]} c5 {[%emt 0:00:28]} 3. d5 {[%emt 0:00:04]} g6 {[%emt 0:02:53]} 4. Nc3 {[%emt 0:00:10]} Bg7 {[%emt 0:00:32]} 5. e4 {[%emt 0:00:07]} d6 {[%emt 0:01:50]} 6. Bc4 {[%emt 0:00:37]} O-O {[%emt 0:00:53]} 7. O-O {[%emt 0:00:09]} Na6 {[%emt 0:00:14]} 8. h3 {[%emt 0:02:25]} Nc7 {[%emt 0:01:29]} 9. Re1 {[%emt 0:01:12]} e5 {[%emt 0:03:30]} 10. dxe6 {[%emt 0:07:18]} Bxe6 {[%emt 0:00:11]} 11. Bxe6 {[%emt 0:01:40]} Nxe6 {[%emt 0:00:09]} 12. Qd3 {[%emt 0:08:12]} Re8 {[%emt 0:08:03]} 13. Be3 {[%emt 0:03:38]} Qb6 {[%emt 0:03:06]} 14. Nd2 {[%emt 0:06:45]} Rad8 {[%emt 0:06:58]} 15. Nc4 {[%emt 0:08:58]} Qc6 {[%emt 0:02:16]} 16. Rad1 {[%emt 0:16:22]} Nd4 {[%emt 0:06:01]} 17. Bg5 {[%emt 0:08:26]} b5 {[%emt 0:27:21]} 18. Ne3 {[%emt 0:01:06]} h6 {[%emt 0:03:37]} 19. Bxf6 {[%emt 0:01:01]} Bxf6 {[%emt 0:00:09]} 20. Ncd5 {[%emt 0:00:42]} Bg7 {[%emt 0:00:02]} 21. Ng4 {[%emt 0:01:19]} 1-0

[Event "Aarhus Festuge GM 2018"]
[Site "Aarhus"]
[Date "2018.09.08"]
[Round "1"]
[White "Matthiesen, Martin"]
[Black "Chatalbashev, Boris"]
[Result "0-1"]
[ECO "D07"]
[WhiteElo "2275"]
[BlackElo "2546"]
[Annotator "NA"]
[PlyCount "92"]
[EventDate "2018.09.08"]
[EventType "tourn"]
[EventCountry "DEN"]
[SourceTitle "playchess.com"]
[Source "ChessBase"]
[SourceQuality "1"]
[TimeControl "40/5400+30:1800+30"]

1. d4 {[%emt 0:00:00]} d5 {[%emt 0:00:00]} 2. c4 {[%emt 0:00:06]} Nc6 {[%emt 0:00:00]} 3. Nc3 {[%emt 0:02:37]} Nf6 {[%emt 0:00:00]} 4. Bg5 {[%emt 0:10:59]} dxc4 {[%emt 0:07:13]} 5. e3 {[%emt 0:05:04]} e5 {[%emt 0:04:04]} 6. d5 {[%emt 0:05:12]} Ne7 {[%emt 0:06:25]} 7. Bxc4 {[%emt 0:01:21]} Ng6 {[%emt 0:02:28]} 8. Bb5+ {[%emt 0:02:08]} Bd7 {[%emt 0:04:25]} 9. Qb3 {[%emt 0:12:00]} Be7 {[%emt 0:02:57]} 10. Bxf6 {[%emt 0:16:57]} Bxf6 {[%emt 0:04:16]} 11. Bxd7+ {[%emt 0:06:42]} Qxd7 {[%emt 0:00:08]} 12. Qxb7 {[%emt 0:00:09]} O-O {[%emt 0:00:12]} 13. Nf3 {[%emt 0:09:14]} Rab8 {[%emt 0:12:40]} 14. Qc6 {[%emt 0:02:04]} Qg4 {[%emt 0:05:06]} 15. O-O {[%emt 0:00:52]} Rxb2 {[%emt 0:10:34]} 16. Rab1 {[%emt 0:05:16]} Rc2 {[%emt 0:16:42]} 17. Rbc1 {[%emt 0:03:02]} Rxc1 {[%emt 0:04:17]} 18. Rxc1 {[%emt 0:00:07]} e4 {[%emt 0:00:15]} 19. Qa4 {[%emt 0:09:19]} Nf4 {[%emt 0:05:39]} 20. Ne1 {[%emt 0:01:27]} Bxc3 {[%emt 0:00:46]} 21. exf4 {[%emt 0:00:08]} Bd2 {[%emt 0:00:26]} 22. Rb1 {[%emt 0:01:44]} Qxf4 {[%emt 0:03:38]} 23. Nc2 {[%emt 0:01:04]} Qf5 {[%emt 0:06:09]} 24. Qxa7 {[%emt 0:00:29]} e3 {[%emt 0:00:31]} 25. Qc5 {[%emt 0:01:39]} exf2+ {[%emt 0:01:13]} 26. Kf1 {[%emt 0:00:15]} Re8 {[%emt 0:00:22]} 27. Qe7 {[%emt 0:00:54]} Qc8 {[%emt 0:00:37]} 28. Qc5 {[%emt 0:00:43]} Qf5 {[%emt 0:01:33]} 29. Qe7 {[%emt 0:00:13]} Rc8 {[%emt 0:01:06]} 30. Qc5 {[%emt 0:00:49]} h5 {[%emt 0:00:35]} 31. Rd1 {[%emt 0:00:36]} Be1 {[%emt 0:00:23]} 32. Nd4 {[%emt 0:00:57]} Qf4 {[%emt 0:00:26]} 33. Nf3 {[%emt 0:00:28]} Ra8 {[%emt 0:00:16]} 34. Rd4 {[%emt 0:00:47]} Qe3 {[%emt 0:00:24]} 35. Qc2 {[%emt 0:00:59]} Re8 {[%emt 0:00:27]} 36. Rd3 {[%emt 0:00:51]} Qe4 {[%emt 0:00:41]} 37. Qd1 {[%emt 0:00:38]} Qc4 {[%emt 0:00:28]} 38. Qb3 {[%emt 0:00:20]} Qa6 {[%emt 0:00:17]} 39. Qa3 {[%emt 0:00:25]} Qc4 {[%emt 0:00:41]} 40. Qb3 {[%emt 0:00:22]} Qc5 {[%emt 0:00:56]} 41. Qa4 {[%emt 0:09:35]} Qe7 {[%emt 0:08:31]} 42. Qc2 {[%emt 0:02:13]} g6 {[%emt 0:00:34]} 43. Rd1 {[%emt 0:02:06]} g5 {[%emt 0:05:50]} 44. d6 {[%emt 0:13:33]} cxd6 {[%emt 0:00:55]} 45. Rd5 {[%emt 0:00:27]} g4 {[%emt 0:10:55]} 46. Rxh5 {[%emt 0:01:18]} Bc3 {[%emt 0:00:18]} 0-1

[Event "Aarhus Festuge GM 2018"]
[Site "Aarhus"]
[Date "2018.09.09"]
[Round "2"]
[White "Olsen, Filip Boe"]
[Black "Matthiesen, Martin"]
[Result "1-0"]
[ECO "E90"]
[WhiteElo "2354"]
[BlackElo "2275"]
[Annotator "NA"]
[PlyCount "59"]
[EventDate "2018.09.08"]
[EventType "tourn"]
[EventCountry "DEN"]
[SourceTitle "playchess.com"]
[Source "ChessBase"]
[SourceQuality "1"]
[TimeControl "40/5400+30:1800+30"]

1. d4 {[%emt 0:00:00]} Nf6 {[%emt 0:00:00]} 2. c4 {[%emt 0:00:00]} g6 {[%emt 0:00:00]} 3. Nc3 {[%emt 0:00:00]} Bg7 {[%emt 0:00:00]} 4. e4 {[%emt 0:00:00]} d6 {[%emt 0:00:00]} 5. Nf3 {[%emt 0:00:06]} O-O {[%emt 0:00:07]} 6. h3 {[%emt 0:00:04]} e5 {[%emt 0:00:12]} 7. d5 {[%emt 0:00:08]} Nh5 {[%emt 0:00:22]} 8. g3 {[%emt 0:00:25] E90: King's Indian: Classical: Early deviations and 6 h3} f5 {[%emt 0:01:17]} (8... Na6 9. Be2 Nc5 10. b4 Nd7 11. Rb1 a5 12. a3 axb4 13. axb4 Qe7 14. Bg5 f6 15. Be3 f5 16. exf5 {½-½ (68) Akobian,V (2647)-Guseinov,G (2646) Riadh 2017}) 9. exf5 {[%emt 0:00:08]} gxf5 {[%emt 0:00:08]} 10. Nh4 {[%emt 0:00:18]} Nf4 {[%emt 0:00:27]} 11. Bd2 {[%emt 0:00:49]} Bd7 {[%emt 0:11:56]} 12. Qc2 {[%emt 0:04:57]} Na6 {[%emt 0:09:49]} 13. a3 {[%emt 0:03:33]} Ng6 $146 {[%emt 0:16:26]} ({Predecessor:} 13... c6 14. O-O-O Nc7 15. Ng2 Ng6 {½-½ (40) Salemgareev,T (2327)-Hakobyan,H (2103) Moscow 2017}) 14. Nxg6 {[%emt 0:02:32]} hxg6 {[%emt 0:00:09]} 15. O-O-O {[%emt 0:02:31]} Qe8 {[%emt 0:02:12]} 16. f3 {[%emt 0:09:12]} Nc5 {[%emt 0:08:33]} 17. Be3 {[%emt 0:10:19]} b6 {[%emt 0:05:33]} 18. Be2 {[%emt 0:04:56]} a5 {[%emt 0:01:56]} 19. g4 {[%emt 0:04:07]} e4 {[%emt 0:09:21]} 20. f4 {[%emt 0:15:22]} Qe7 {[%emt 0:15:38]} (20... Nd3+ $11 {remains equal.} 21. Bxd3 exd3 22. Qxd3 fxg4) 21. g5 {[%emt 0:03:09]} Be8 {[%emt 0:04:40]} 22. h4 {[%emt 0:00:48]} Bf7 {[%emt 0:00:34]} (22... Kh7 $142 23. h5 gxh5) 23. Nb5 {[%emt 0:05:12]} a4 {[%emt 0:01:10]} 24. Nd4 {[%emt 0:05:04]} Nd3+ {[%emt 0:06:57]} 25. Kb1 {[%emt 0:04:48]} b5 $2 {[%emt 0:01:00]} (25... Bxd4 $16 26. Bxd4 Nxf4) 26. h5 {[%emt 0:04:57]} Rfb8 {[%emt 0:02:22]} 27. h6 {[%emt 0:05:18]} bxc4 {[%emt 0:00:18]} 28. hxg7 {[%emt 0:00:41]} Rxb2+ {[%emt 0:01:12]} 29. Qxb2 {[%emt 0:00:09]} Nxb2 {[%emt 0:00:07]} 30. Nc6 $18 {[%emt 0:00:23]} 1-0

[Event "Aarhus Festuge GM 2018"]
[Site "Aarhus"]
[Date "2018.09.11"]
[Round "4"]
[White "Pajeken, Jakob Leon"]
[Black "Antonsen, Mikkel"]
[Result "1-0"]
[ECO "D00"]
[WhiteElo "2337"]
[BlackElo "2434"]
[Annotator "ChessBase"]
[PlyCount "47"]
[EventDate "2018.09.08"]
[EventType "tourn"]
[EventCountry "DEN"]
[SourceTitle "playchess.com"]
[Source "ChessBase"]
[SourceQuality "1"]
[TimeControl "40/5400+30:1800+30"]

1. d4 {[%emt 0:00:00]} d5 {[%emt 0:00:00]} 2. Bf4 {[%emt 0:00:00]} Nf6 {[%emt 0:00:00]} 3. e3 {[%emt 0:00:00]} e6 {[%emt 0:00:00]} 4. Nd2 {[%emt 0:00:00]} c5 {[%emt 0:00:07]} 5. c3 {[%emt 0:00:06]} Nc6 {[%emt 0:00:05]} 6. Ngf3 {[%emt 0:00:11]} Bd6 {[%emt 0:00:38]} 7. Bg3 {[%emt 0:00:07]} O-O {[%emt 0:00:24]} 8. Bd3 {[%emt 0:00:14]} b6 {[%emt 0:00:13]} 9. Qe2 {[%emt 0:00:09]} Bb7 {[%emt 0:00:43]} 10. Rd1 {[%emt 0:00:07]} c4 {[%emt 0:16:01]} 11. Bb1 {[%emt 0:01:56]} b5 {[%emt 0:00:05]} 12. e4 {[%emt 0:11:02]} Be7 {[%emt 0:00:17]} 13. e5 {[%emt 0:05:54]} Nh5 {[%emt 0:00:07]} 14. Nf1 {[%emt 0:06:11]} g6 {[%emt 0:07:47]} 15. h4 {[%emt 0:10:30]} f5 {[%emt 0:13:12]} 16. exf6 {[%emt 0:01:51]} Rxf6 {[%emt 0:00:08]} 17. Ng5 {[%emt 0:02:02]} Nxg3 {[%emt 0:22:06]} 18. Nxg3 {[%emt 0:00:22]} Bd6 {[%emt 0:04:26]} 19. h5 {[%emt 0:06:14]} Bxg3 {[%emt 0:06:10]} 20. fxg3 {[%emt 0:00:10]} Qc7 {[%emt 0:04:13]} 21. Qg4 {[%emt 0:09:02]} h6 {[%emt 0:00:06]} 22. hxg6 {[%emt 0:03:35]} hxg5 {[%emt 0:00:07]} 23. Rh7 {[%emt 0:00:15]} Qg7 {[%emt 0:02:42]} 24. Qh5 {[%emt 0:01:46]} 1-0

[Event "Aarhus Festuge GM 2018"]
[Site "Aarhus"]
[Date "2018.09.13"]
[Round "6"]
[White "Grove, Peter"]
[Black "Olsen, Filip Boe"]
[Result "1/2-1/2"]
[ECO "B17"]
[WhiteElo "2206"]
[BlackElo "2354"]
[Annotator "ChessBase"]
[PlyCount "86"]
[EventDate "2018.09.08"]
[EventType "tourn"]
[EventCountry "DEN"]
[SourceTitle "playchess.com"]
[Source "ChessBase"]
[SourceQuality "1"]
[TimeControl "40/5400+30:1800+30"]

1. e4 {[%emt 0:00:00]} c6 {[%emt 0:00:00]} 2. d4 {[%emt 0:00:00]} d5 {[%emt 0:00:00]} 3. Nc3 {[%emt 0:00:00]} dxe4 {[%emt 0:00:00]} 4. Nxe4 {[%emt 0:00:00]} Nd7 {[%emt 0:00:00]} 5. Nf3 {[%emt 0:00:44]} Ngf6 {[%emt 0:00:13]} 6. Nxf6+ {[%emt 0:00:06]} Nxf6 {[%emt 0:00:03]} 7. Bc4 {[%emt 0:00:09]} Bf5 {[%emt 0:01:59]} 8. O-O {[%emt 0:01:42]} e6 {[%emt 0:00:10]} 9. Bg5 {[%emt 0:00:30]} h6 {[%emt 0:01:55]} 10. Bh4 {[%emt 0:00:53]} Be7 {[%emt 0:01:13]} 11. c3 {[%emt 0:00:19]} O-O {[%emt 0:00:39]} 12. Ne5 {[%emt 0:01:38]} Ne4 {[%emt 0:09:55]} 13. Bxe7 {[%emt 0:02:20]} Qxe7 {[%emt 0:03:14]} 14. Bd3 {[%emt 0:00:21]} Rfd8 {[%emt 0:03:30]} 15. Qc2 {[%emt 0:01:51]} Nd6 {[%emt 0:00:33]} 16. Rfe1 {[%emt 0:07:46]} Qc7 {[%emt 0:06:59]} 17. Bxf5 {[%emt 0:05:07]} Nxf5 {[%emt 0:00:23]} 18. Qe4 {[%emt 0:00:34]} Rd5 {[%emt 0:06:58]} 19. Nc4 {[%emt 0:13:01]} Rad8 {[%emt 0:10:21]} 20. Ne3 {[%emt 0:03:28]} Nxe3 {[%emt 0:00:40]} 21. Qxe3 {[%emt 0:00:46]} c5 {[%emt 0:05:09]} 22. dxc5 {[%emt 0:02:50]} Qxc5 {[%emt 0:00:58]} 23. Qxc5 {[%emt 0:00:14]} Rxc5 {[%emt 0:00:01]} 24. Rad1 {[%emt 0:00:16]} Rcd5 {[%emt 0:01:36]} 25. Rxd5 {[%emt 0:00:09]} Rxd5 {[%emt 0:00:07]} 26. Kf1 {[%emt 0:00:11]} Kf8 {[%emt 0:02:12]} 27. Re4 {[%emt 0:00:33]} Rb5 {[%emt 0:05:45]} 28. b3 {[%emt 0:01:35]} Rc5 {[%emt 0:01:08]} 29. Re3 {[%emt 0:02:07]} Ke7 {[%emt 0:00:36]} 30. Ke1 {[%emt 0:02:55]} Rd5 {[%emt 0:02:43]} 31. Rf3 {[%emt 0:01:19]} Ra5 {[%emt 0:01:36]} 32. a4 {[%emt 0:00:12]} Rd5 {[%emt 0:00:31]} 33. Ke2 {[%emt 0:01:48]} Rd6 {[%emt 0:01:56]} 34. Rg3 {[%emt 0:00:56]} g6 {[%emt 0:00:39]} 35. Rd3 {[%emt 0:01:00]} Rb6 {[%emt 0:01:38]} 36. b4 {[%emt 0:00:24]} Rc6 {[%emt 0:00:59]} 37. Kd2 {[%emt 0:05:05]} Rc4 {[%emt 0:01:38]} 38. Kc2 {[%emt 0:00:44]} Re4 {[%emt 0:00:16]} 39. f3 {[%emt 0:01:22]} Re1 {[%emt 0:00:37]} 40. Rd1 {[%emt 0:00:20]} Re2+ {[%emt 0:00:12]} 41. Rd2 {[%emt 0:30:05]} Re1 {[%emt 0:30:08]} 42. Rd1 {[%emt 0:00:04]} Re2+ {[%emt 0:00:17]} 43. Rd2 {[%emt 0:00:06]} Re1 {[%emt 0:00:05]} 1/2-1/2

[Event "Aarhus Festuge GM 2018"]
[Site "Aarhus"]
[Date "2018.09.15"]
[Round "8"]
[White "Skytte, Rasmus"]
[Black "Matthiesen, Martin"]
[Result "1-0"]
[ECO "E73"]
[WhiteElo "2372"]
[BlackElo "2275"]
[Annotator "ChessBase"]
[PlyCount "77"]
[EventDate "2018.09.08"]
[EventType "tourn"]
[EventCountry "DEN"]
[SourceTitle "playchess.com"]
[Source "ChessBase"]
[SourceQuality "1"]
[TimeControl "40/5400+30:1800+30"]

1. d4 {[%emt 0:08:54]} Nf6 {[%emt 0:00:00]} 2. c4 {[%emt 0:00:22]} g6 {[%emt 0:00:00]} 3. Nc3 {[%emt 0:00:06]} Bg7 {[%emt 0:00:00]} 4. e4 {[%emt 0:00:06]} d6 {[%emt 0:00:03]} 5. Be2 {[%emt 0:00:04]} O-O {[%emt 0:00:10]} 6. Bg5 {[%emt 0:00:04]} c5 {[%emt 0:00:36]} 7. d5 {[%emt 0:02:32]} e6 {[%emt 0:00:20]} 8. Qd2 {[%emt 0:00:55]} exd5 {[%emt 0:02:06]} 9. exd5 {[%emt 0:00:53]} Qb6 {[%emt 0:02:54]} 10. Nf3 {[%emt 0:00:37]} Bf5 {[%emt 0:17:52]} 11. Nh4 {[%emt 0:00:23]} Ne4 {[%emt 0:03:08]} 12. Nxe4 {[%emt 0:03:42]} Bxe4 {[%emt 0:01:24]} 13. f3 {[%emt 0:00:13]} h6 {[%emt 0:06:48]} 14. Bxh6 {[%emt 0:03:01]} Bxh6 {[%emt 0:00:18]} 15. Qxh6 {[%emt 0:00:09]} Qxb2 {[%emt 0:00:09]} 16. O-O {[%emt 0:01:44]} Qd4+ {[%emt 0:07:52]} 17. Kh1 {[%emt 0:03:35]} Bc2 {[%emt 0:00:20]} 18. Rac1 {[%emt 0:13:35]} Ba4 {[%emt 0:00:48]} 19. f4 {[%emt 0:01:36]} Qg7 {[%emt 0:08:10]} 20. Qg5 {[%emt 0:02:17]} Re8 {[%emt 0:07:03]} 21. Bd3 {[%emt 0:05:08]} Nd7 {[%emt 0:01:36]} 22. Qg3 {[%emt 0:11:51]} Nf6 {[%emt 0:05:24]} 23. Bb1 {[%emt 0:17:33]} Re2 {[%emt 0:05:06]} 24. f5 {[%emt 0:07:32]} g5 {[%emt 0:00:37]} 25. Nf3 {[%emt 0:00:28]} g4 {[%emt 0:01:39]} 26. Ne1 {[%emt 0:00:16]} Rd8 {[%emt 0:12:59]} 27. Nd3 {[%emt 0:03:03]} Qg5 {[%emt 0:04:35]} 28. Nf4 {[%emt 0:01:19]} Re5 {[%emt 0:01:24]} 29. Qc3 {[%emt 0:05:10]} b6 {[%emt 0:01:18]} 30. Qg3 {[%emt 0:03:03]} b5 {[%emt 0:01:38]} 31. Nh3 {[%emt 0:03:06]} Qg7 {[%emt 0:01:48]} 32. Nf4 {[%emt 0:01:38]} Rde8 {[%emt 0:01:26]} 33. Qh4 {[%emt 0:00:22]} Qh8 {[%emt 0:01:43]} 34. Qg5+ {[%emt 0:00:07]} Kf8 {[%emt 0:00:25]} 35. Nd3 {[%emt 0:00:56]} Re2 {[%emt 0:00:56]} 36. Nf4 {[%emt 0:00:12]} Rb2 {[%emt 0:02:02]} 37. Ng6+ {[%emt 0:00:30]} fxg6 {[%emt 0:00:08]} 38. fxg6 {[%emt 0:00:03]} Ke7 {[%emt 0:01:59]} 39. g7 {[%emt 0:00:18]} 1-0